[Event "World Women Teams  Championship"]
[Site "Sitges, Spain"]
[Date "2021.09.27"]
[Round "1.8"]
[White "Antolak Julia (POL)"]
[Black "Arribas Robaina Maritza (AME)"]
[Result "0-1"]
[TimeControl "40+10"]
[WhiteElo "2052"]
[BlackElo "2261"]

1. e4 {[%clk 00:45:17]} {[%emt 00:00:03]} e6 {[%clk 00:45:18]} {[%emt
00:00:03]} 2. d4 {[%clk 00:45:21]} {[%emt 00:00:06]} d5 {[%clk 00:45:26]}
{[%emt 00:00:01]} 3. Nd2 {[%clk 00:45:26]} {[%emt 00:00:05]} Nc6 {[%clk
00:45:34]} {[%emt 00:00:02]} 4. Ngf3 {[%clk 00:45:22]} {[%emt 00:00:15]} Nf6
{[%clk 00:45:41]} {[%emt 00:00:03]} 5. e5 {[%clk 00:45:28]} {[%emt 00:00:04]}
Nd7 {[%clk 00:45:49]} {[%emt 00:00:02]} 6. Bd3 {[%clk 00:45:01]} {[%emt
00:00:36]} Nb4 {[%clk 00:45:56]} {[%emt 00:00:03]} 7. Be2 {[%clk 00:44:55]}
{[%emt 00:00:17]} c5 {[%clk 00:46:04]} {[%emt 00:00:02]} 8. c3 {[%clk
00:44:57]} {[%emt 00:00:07]} Nc6 {[%clk 00:46:13]} {[%emt 00:00:01]} 9. O-O
{[%clk 00:44:22]} {[%emt 00:00:45]} Qb6 {[%clk 00:45:55]} {[%emt 00:00:28]} 10.
Nb3 {[%clk 00:40:43]} {[%emt 00:03:50]} Be7 {[%clk 00:44:53]} {[%emt 00:01:12]}
11. dxc5 {[%clk 00:39:40]} {[%emt 00:01:13]} Qc7 {[%clk 00:45:02]} {[%emt
00:00:01]} 12. Bf4 {[%clk 00:38:02]} {[%emt 00:01:48]} Nxc5 {[%clk 00:44:32]}
{[%emt 00:00:40]} 13. Nbd4 {[%clk 00:36:22]} {[%emt 00:01:49]} a6 {[%clk
00:44:34]} {[%emt 00:00:08]} 14. Re1 {[%clk 00:35:40]} {[%emt 00:00:52]} h6
{[%clk 00:44:37]} {[%emt 00:00:07]} 15. Bg3 {[%clk 00:34:58]} {[%emt 00:00:52]}
Bd7 {[%clk 00:44:41]} {[%emt 00:00:07]} 16. Nd2 {[%clk 00:32:50]} {[%emt
00:02:17]} Rc8 {[%clk 00:44:07]} {[%emt 00:00:44]} 17. Bf1 {[%clk 00:31:58]}
{[%emt 00:01:02]} Qb6 {[%clk 00:43:47]} {[%emt 00:00:31]} 18. b3 {[%clk
00:30:48]} {[%emt 00:01:20]} O-O {[%clk 00:42:13]} {[%emt 00:01:43]} 19. Rc1
{[%clk 00:27:25]} {[%emt 00:03:32]} a5 {[%clk 00:39:57]} {[%emt 00:02:27]} 20.
Qg4 {[%clk 00:24:11]} {[%emt 00:03:24]} f5 {[%clk 00:34:42]} {[%emt 00:05:25]}
21. exf6 {[%clk 00:23:46]} {[%emt 00:00:35]} Bxf6 {[%clk 00:34:51]} {[%emt
00:00:01]} 22. Bd6 {[%clk 00:19:32]} {[%emt 00:04:25]} Rf7 {[%clk 00:34:44]}
{[%emt 00:00:16]} 23. Nxc6 {[%clk 00:13:26]} {[%emt 00:06:16]} Qxc6 {[%clk
00:33:50]} {[%emt 00:01:05]} 24. Be5 {[%clk 00:12:25]} {[%emt 00:01:10]} Bxe5
{[%clk 00:28:34]} {[%emt 00:05:26]} 25. Rxe5 {[%clk 00:12:35]} Rcf8 {[%clk
00:28:43]} 26. b4 {[%clk 00:10:25]} {[%emt 00:02:20]} Rf4 {[%clk 00:24:26]}
{[%emt 00:04:26]} 27. Qd1 {[%clk 00:06:58]} {[%emt 00:03:38]} Na4 {[%clk
00:20:55]} {[%emt 00:03:40]} 28. b5 {[%clk 00:05:47]} {[%emt 00:01:21]} Qc7
{[%clk 00:16:34]} {[%emt 00:04:32]} 29. Re1 {[%clk 00:05:11]} {[%emt 00:00:46]}
Rxf2 {[%clk 00:16:27]} {[%emt 00:00:17]} 30. Nb3 {[%clk 00:04:03]} {[%emt
00:01:17]} Qb6 {[%clk 00:14:16]} {[%emt 00:02:21]} 31. Nd4 {[%clk 00:03:50]}
{[%emt 00:00:23]} Nxc3 {[%clk 00:12:12]} {[%emt 00:02:14]} 32. Rxc3 {[%clk
00:03:56]} {[%emt 00:00:04]} e5 {[%clk 00:12:21]} 33. a4 {[%clk 00:02:01]}
{[%emt 00:02:06]} exd4 {[%clk 00:11:53]} {[%emt 00:00:37]} 34. Rg3 {[%clk
00:01:53]} {[%emt 00:00:18]} d3 {[%clk 00:11:41]} {[%emt 00:00:22]} 35. Kh1
{[%clk 00:01:52]} {[%emt 00:00:10]} d2 {[%clk 00:11:32]} {[%emt 00:00:20]} 36.
Qa1 {[%clk 00:01:16]} {[%emt 00:00:46]} Qf6 {[%clk 00:11:21]} {[%emt 00:00:22]}
0-1

[Event "World Women Teams  Championship"]
[Site "Sitges, Spain"]
[Date "2021.09.27"]
[Round "1.9"]
[White "Abdumalik Zhansaya (KAZ)"]
[Black "Paehtz Elisabeth (GER)"]
[Result "1-0"]
[TimeControl "40+10"]
[WhiteElo "2444"]
[BlackElo "2371"]

1. e4 {[%clk 00:45:17]} c5 {[%emt 05:22:10]} 2. Nf3 d6 3. d4 cxd4 4. Nxd4 Nf6 5.
Nc3 a6 6. h3 e5 7. Nde2 h5 8. g3 Be7 9. Bg2 b5 10. a4 b4 11. Nd5 Nxd5 12. Qxd5
Ra7 13. Be3 Be6 14. Qd2 Rb7 15. O-O Qc8 16. Kh2 Nd7 17. b3 Nf6 18. f4 Rc7 19.
Rac1 Qb7 20. Qd3 O-O 21. a5 Bd7 22. Bb6 Rcc8 23. c3 Bb5 24. c4 Bc6 25. fxe5
dxe5 26. Rf5 Nd7 27. Be3 g6 28. Rf2 Nf6 29. Rxf6 Bxf6 30. Rf1 Be7 {[%clk
00:45:19]} 1-0

[Event "World Women Teams  Championship"]
[Site "Sitges, Spain"]
[Date "2021.09.27"]
[Round "1.10"]
[White "Heinemann Josefine (GER)"]
[Black "Saduakassova Dinara (KAZ)"]
[Result "1/2-1/2"]
[TimeControl "40+10"]
[WhiteElo "2177"]
[BlackElo "2429"]

1. Nf3 {[%clk 00:45:06]} {[%emt 00:00:13]} Nf6 {[%clk 00:45:14]} {[%emt
00:00:07]} 2. g3 {[%clk 00:44:15]} {[%emt 00:01:01]} b6 {[%clk 00:45:18]}
{[%emt 00:00:06]} 3. Bg2 {[%clk 00:44:05]} {[%emt 00:00:20]} Bb7 {[%clk
00:45:27]} {[%emt 00:00:01]} 4. O-O {[%clk 00:42:14]} {[%emt 00:02:01]} g6
{[%clk 00:45:35]} {[%emt 00:00:02]} 5. d4 {[%clk 00:41:57]} {[%emt 00:00:27]}
Bg7 {[%clk 00:45:36]} {[%emt 00:00:09]} 6. c4 {[%clk 00:41:09]} {[%emt
00:00:59]} O-O {[%clk 00:45:40]} {[%emt 00:00:06]} 7. b3 {[%clk 00:39:20]}
{[%emt 00:01:58]} e6 {[%clk 00:43:47]} {[%emt 00:02:03]} 8. Nc3 {[%clk
00:36:48]} {[%emt 00:02:42]} d5 {[%clk 00:43:37]} {[%emt 00:00:20]} 9. Ba3
{[%clk 00:35:48]} {[%emt 00:01:10]} Re8 {[%clk 00:43:32]} {[%emt 00:00:15]} 10.
cxd5 {[%clk 00:35:21]} {[%emt 00:00:37]} exd5 {[%clk 00:42:58]} {[%emt
00:00:44]} 11. Rc1 {[%clk 00:35:03]} {[%emt 00:00:29]} Na6 {[%clk 00:42:44]}
{[%emt 00:00:24]} 12. e3 {[%clk 00:31:25]} {[%emt 00:03:47]} Ne4 {[%clk
00:38:33]} {[%emt 00:04:21]} 13. Nxe4 {[%clk 00:22:27]} {[%emt 00:09:05]} dxe4
{[%clk 00:38:33]} {[%emt 00:00:13]} 14. Nd2 {[%clk 00:22:30]} {[%emt 00:00:06]}
c5 {[%clk 00:27:57]} {[%emt 00:10:47]} 15. dxc5 {[%clk 00:22:28]} {[%emt
00:00:12]} Nxc5 {[%clk 00:27:59]} {[%emt 00:00:09]} 16. Bxc5 {[%clk 00:22:20]}
{[%emt 00:00:18]} bxc5 {[%clk 00:28:07]} {[%emt 00:00:01]} 17. Rxc5 {[%clk
00:22:08]} {[%emt 00:00:21]} Qd6 {[%clk 00:26:28]} {[%emt 00:01:49]} 18. Rc2
{[%clk 00:21:17]} {[%emt 00:01:02]} Rad8 {[%clk 00:24:02]} {[%emt 00:02:37]} 19.
Qc1 {[%clk 00:17:33]} {[%emt 00:03:53]} f5 {[%clk 00:22:40]} {[%emt 00:01:32]}
20. Nc4 {[%clk 00:17:32]} {[%emt 00:00:11]} Qb4 {[%clk 00:18:48]} {[%emt
00:04:02]} 21. Rd1 {[%clk 00:16:48]} {[%emt 00:00:54]} a5 {[%clk 00:14:48]}
{[%emt 00:04:11]} 22. Rcd2 {[%clk 00:16:39]} {[%emt 00:00:19]} Rxd2 {[%clk
00:14:03]} {[%emt 00:00:54]} 23. Qxd2 {[%clk 00:16:38]} {[%emt 00:00:11]} Qxd2
24. Rxd2 {[%clk 00:16:46]} a4 {[%clk 00:11:59]} {[%emt 00:00:07]} 25. Bf1
{[%clk 00:11:43]} {[%emt 00:05:13]} axb3 {[%clk 00:10:27]} {[%emt 00:01:43]} 26.
axb3 {[%clk 00:11:52]} {[%emt 00:00:01]} Bc6 {[%clk 00:07:41]} {[%emt
00:02:55]} 27. Rd6 {[%clk 00:09:56]} {[%emt 00:02:06]} Bb5 {[%clk 00:07:01]}
{[%emt 00:00:51]} 28. Rb6 {[%clk 00:08:52]} {[%emt 00:01:15]} Bxc4 {[%clk
00:04:59]} {[%emt 00:02:12]} 29. Bxc4+ {[%clk 00:09:00]} {[%emt 00:00:01]} Kh8
{[%clk 00:05:07]} {[%emt 00:00:02]} 30. b4 {[%clk 00:08:07]} {[%emt 00:01:03]}
Rc8 {[%clk 00:04:18]} {[%emt 00:00:59]} 31. Bf1 {[%clk 00:05:28]} {[%emt
00:02:49]} Be5 {[%clk 00:04:17]} {[%emt 00:00:11]} 32. Re6 {[%clk 00:05:16]}
{[%emt 00:00:22]} Bc3 {[%clk 00:03:18]} {[%emt 00:01:09]} 33. b5 {[%clk
00:05:06]} {[%emt 00:00:21]} Ba5 {[%clk 00:03:23]} {[%emt 00:00:05]} 34. Ra6
{[%clk 00:04:39]} {[%emt 00:00:38]} Bd8 {[%clk 00:03:17]} {[%emt 00:00:15]} 35.
Ra7 {[%clk 00:03:43]} {[%emt 00:01:06]} Rb8 {[%clk 00:02:22]} {[%emt 00:01:05]}
36. Bc4 {[%clk 00:02:39]} {[%emt 00:01:14]} Bb6 {[%clk 00:02:31]} {[%emt
00:00:01]} 37. Ra6 {[%clk 00:02:02]} {[%emt 00:00:47]} Kg7 {[%clk 00:02:04]}
{[%emt 00:00:36]} 38. Kf1 {[%clk 00:01:22]} {[%emt 00:00:51]} Kf6 {[%clk
00:01:34]} {[%emt 00:00:40]} 39. Bd5 {[%clk 00:01:25]} {[%emt 00:00:07]} Ke5
{[%clk 00:01:14]} {[%emt 00:00:30]} 40. Bc6 {[%clk 00:01:34]} Kd6 {[%clk
00:00:42]} {[%emt 00:00:41]} 41. Ke2 {[%clk 00:01:27]} {[%emt 00:00:18]} Kc7
{[%clk 00:00:30]} {[%emt 00:00:22]} 42. g4 {[%clk 00:01:05]} {[%emt 00:00:32]}
fxg4 {[%clk 00:00:30]} {[%emt 00:00:11]} 43. Ra4 {[%clk 00:01:14]} {[%emt
00:00:01]} h5 {[%clk 00:00:22]} {[%emt 00:00:17]} 44. Rxe4 {[%clk 00:01:08]}
{[%emt 00:00:16]} Kd6 {[%clk 00:00:24]} {[%emt 00:00:07]} 45. Be8 {[%clk
00:00:44]} {[%emt 00:00:34]} Bc7 {[%clk 00:00:34]} {[%emt 00:00:01]} 46. Kf1
{[%clk 00:00:22]} {[%emt 00:00:32]} Kd5 {[%clk 00:00:25]} {[%emt 00:00:19]} 47.
Bxg6 {[%clk 00:00:18]} {[%emt 00:00:14]} Rxb5 {[%clk 00:00:20]} {[%emt
00:00:16]} 48. Kg2 {[%clk 00:00:26]} {[%emt 00:00:01]} Bd6 {[%clk 00:00:14]}
{[%emt 00:00:15]} 49. Re8 {[%clk 00:00:15]} {[%emt 00:00:22]} h4 {[%clk
00:00:17]} {[%emt 00:00:07]} 50. h3 {[%clk 00:00:22]} {[%emt 00:00:03]} g3
{[%clk 00:00:15]} {[%emt 00:00:12]} 51. Be4+ {[%clk 00:00:12]} {[%emt
00:00:20]} Kc5 {[%clk 00:00:22]} {[%emt 00:00:03]} 52. Rc8+ {[%clk 00:00:18]}
{[%emt 00:00:04]} Kb4 {[%clk 00:00:25]} {[%emt 00:00:07]} 53. f4 {[%clk
00:00:17]} {[%emt 00:00:11]} Ra5 {[%clk 00:00:24]} {[%emt 00:00:11]} 54. Rc2
{[%clk 00:00:14]} {[%emt 00:00:12]} Ra3 {[%clk 00:00:24]} {[%emt 00:00:11]} 55.
Kf3 {[%clk 00:00:17]} {[%emt 00:00:07]} Bc5 {[%emt 00:00:12]} 56. Re2 {[%clk
00:00:21]} {[%emt 00:00:04]} g2 {[%clk 00:00:14]} {[%emt 00:00:19]} 57. Kxg2
{[%clk 00:00:29]} {[%emt 00:00:03]} Rxe3 {[%clk 00:00:20]} {[%emt 00:00:04]} 58.
Rxe3 {[%clk 00:00:25]} {[%emt 00:00:14]} Bxe3 {[%clk 00:00:29]} 59. Kf3 {[%clk
00:00:35]} Bd2 {[%clk 00:00:16]} {[%emt 00:00:25]} 60. Kg4 {[%clk 00:00:31]}
{[%emt 00:00:13]} Kc5 {[%clk 00:00:22]} {[%emt 00:00:04]} 61. f5 {[%clk
00:00:37]} {[%emt 00:00:04]} Kd6 {[%clk 00:00:20]} {[%emt 00:00:11]} 62. Kxh4
{[%clk 00:00:40]} {[%emt 00:00:07]} Ke5 {[%emt 00:00:09]} 63. Kh5 {[%clk
00:00:40]} {[%emt 00:00:06]} Kf6 {[%clk 00:00:34]} {[%emt 00:00:01]} 64. Kg4
{[%clk 00:00:46]} {[%emt 00:00:04]} Bh6 {[%clk 00:00:39]} {[%emt 00:00:06]} 65.
Kf3 {[%clk 00:00:52]} {[%emt 00:00:04]} Ke5 {[%clk 00:00:39]} {[%emt 00:00:10]}
66. Bc2 {[%clk 00:01:00]} {[%emt 00:00:02]} Bg5 {[%clk 00:00:39]} {[%emt
00:00:10]} 67. Ke2 {[%clk 00:00:59]} {[%emt 00:00:11]} Kf6 {[%clk 00:00:36]}
{[%emt 00:00:13]} 68. Be4 {[%emt 00:00:07]} Ke5 {[%clk 00:00:31]} {[%emt
00:00:10]} 69. Bd3 {[%clk 00:01:15]} {[%emt 00:00:01]} Kf6 {[%clk 00:00:39]}
{[%emt 00:00:02]} 70. Kd1 {[%clk 00:01:24]} {[%emt 00:00:02]} Ke7 {[%clk
00:00:23]} {[%emt 00:00:26]} 71. Kc2 {[%clk 00:01:30]} {[%emt 00:00:04]} Bh4
{[%clk 00:00:22]} {[%emt 00:00:11]} 72. Kc3 {[%clk 00:01:38]} {[%emt 00:00:02]}
Bf6+ {[%clk 00:00:27]} {[%emt 00:00:04]} 73. Kc4 {[%clk 00:01:47]} {[%emt
00:00:02]} Kd6 {[%clk 00:00:26]} {[%emt 00:00:10]} 74. Bc2 {[%clk 00:01:56]}
{[%emt 00:00:02]} Bg5 {[%clk 00:00:21]} {[%emt 00:00:15]} 75. Kd4 {[%clk
00:02:00]} {[%emt 00:00:06]} Bh4 {[%clk 00:00:15]} {[%emt 00:00:15]} 76. Ke4
{[%clk 00:02:08]} {[%emt 00:00:02]} Ke7 {[%clk 00:00:22]} {[%emt 00:00:03]} 77.
Ke5 {[%clk 00:02:09]} {[%emt 00:00:10]} Bg3+ {[%clk 00:00:29]} {[%emt
00:00:03]} 78. Kd5 {[%clk 00:02:16]} {[%emt 00:00:03]} Bh4 {[%clk 00:00:28]}
{[%emt 00:00:11]} 79. Ke4 {[%clk 00:02:12]} {[%emt 00:00:14]} Kf6 {[%clk
00:00:29]} {[%emt 00:00:09]} 80. Kf4 {[%clk 00:02:19]} {[%emt 00:00:02]} Bg5+
{[%clk 00:00:34]} {[%emt 00:00:06]} 81. Kg4 {[%clk 00:02:27]} {[%emt 00:00:02]}
Bh6 {[%clk 00:00:37]} {[%emt 00:00:07]} 82. h4 {[%emt 00:00:01]} Bd2 {[%clk
00:00:35]} {[%emt 00:00:12]} 83. Kf3 {[%clk 00:02:41]} {[%emt 00:00:04]} Be1
{[%clk 00:00:34]} {[%emt 00:00:11]} 84. Kg4 {[%clk 00:02:50]} Bd2 {[%clk
00:00:41]} {[%emt 00:00:04]} 85. Bd3 {[%clk 00:03:00]} Bh6 {[%clk 00:00:38]}
{[%emt 00:00:13]} 86. Kf3 {[%clk 00:03:08]} {[%emt 00:00:02]} Bd2 {[%clk
00:00:39]} {[%emt 00:00:09]} 87. Ke4 {[%clk 00:03:15]} {[%emt 00:00:02]} Be1
{[%clk 00:00:37]} {[%emt 00:00:13]} 88. h5 {[%clk 00:03:24]} {[%emt 00:00:02]}
Bd2 {[%clk 00:00:46]} 89. Be2 {[%clk 00:03:22]} {[%emt 00:00:12]} Bh6 {[%clk
00:00:42]} {[%emt 00:00:14]} 90. Bg4 {[%clk 00:03:30]} {[%emt 00:00:01]} Bg5
{[%clk 00:00:36]} {[%emt 00:00:17]} 91. Kd5 {[%clk 00:03:38]} {[%emt 00:00:02]}
Bh6 {[%clk 00:00:39]} {[%emt 00:00:07]} 92. Kd6 {[%clk 00:03:46]} {[%emt
00:00:02]} Bf4+ {[%clk 00:00:39]} {[%emt 00:00:10]} 93. Kd7 {[%clk 00:03:54]}
{[%emt 00:00:01]} Bh6 {[%clk 00:00:48]} {[%emt 00:00:02]} 94. Ke8 {[%clk
00:04:02]} {[%emt 00:00:02]} Bg7 {[%clk 00:00:57]} 95. Bh3 {[%clk 00:04:04]}
{[%emt 00:00:08]} Bh6 {[%clk 00:01:06]} {[%emt 00:00:02]} 96. Bg4 {[%emt
00:00:02]} Ke5 {[%emt 00:00:02]} 1/2-1/2

[Event "World Women Teams  Championship"]
[Site "Sitges, Spain"]
[Date "2021.09.27"]
[Round "1.12"]
[White "Klek Hanna Marie (GER)"]
[Black "Dauletova Gulmira (KAZ)"]
[Result "1-0"]
[TimeControl "40+10"]
[WhiteElo "2331"]
[BlackElo "2184"]

1. e4 {[%clk 00:45:17]} {[%emt 00:00:03]} e5 {[%clk 00:45:12]} {[%emt
00:00:09]} 2. Nf3 {[%clk 00:45:24]} {[%emt 00:00:03]} Nc6 {[%clk 00:45:18]}
{[%emt 00:00:03]} 3. Bb5 {[%clk 00:45:32]} {[%emt 00:00:02]} a6 {[%clk
00:45:16]} {[%emt 00:00:13]} 4. Ba4 {[%clk 00:45:40]} {[%emt 00:00:02]} Nf6
{[%emt 00:00:08]} 5. O-O {[%clk 00:45:45]} {[%emt 00:00:02]} Be7 {[%clk
00:44:56]} {[%emt 00:00:35]} 6. Re1 {[%clk 00:45:50]} {[%emt 00:00:04]} b5
{[%clk 00:44:58]} {[%emt 00:00:08]} 7. Bb3 {[%clk 00:45:57]} {[%emt 00:00:03]}
d6 {[%clk 00:45:04]} {[%emt 00:00:04]} 8. c3 {[%clk 00:46:05]} {[%emt
00:00:03]} O-O {[%clk 00:45:10]} {[%emt 00:00:04]} 9. h3 {[%clk 00:46:12]}
{[%emt 00:00:03]} Na5 {[%clk 00:45:10]} {[%emt 00:00:09]} 10. Bc2 {[%clk
00:46:20]} {[%emt 00:00:02]} c5 {[%clk 00:44:42]} {[%emt 00:00:39]} 11. d4
{[%clk 00:46:27]} {[%emt 00:00:03]} Nd7 {[%clk 00:44:30]} {[%emt 00:00:20]} 12.
a4 {[%clk 00:46:34]} {[%emt 00:00:05]} Bb7 {[%clk 00:44:02]} {[%emt 00:00:37]}
13. d5 {[%clk 00:46:38]} {[%emt 00:00:06]} c4 {[%clk 00:42:56]} {[%emt
00:01:16]} 14. Be3 {[%clk 00:46:35]} {[%emt 00:00:13]} Qc7 {[%clk 00:42:00]}
{[%emt 00:01:06]} 15. Na3 {[%clk 00:46:39]} {[%emt 00:00:06]} bxa4 {[%clk
00:40:34]} {[%emt 00:01:37]} 16. Bxa4 {[%clk 00:46:36]} {[%emt 00:00:13]} Nc5
{[%clk 00:39:43]} {[%emt 00:01:00]} 17. Bc2 {[%clk 00:46:42]} {[%emt 00:00:05]}
Ncb3 {[%clk 00:32:09]} {[%emt 00:07:44]} 18. Rb1 {[%clk 00:46:35]} {[%emt
00:00:16]} Bc8 {[%clk 00:31:40]} {[%emt 00:00:39]} 19. Bxb3 {[%clk 00:43:03]}
{[%emt 00:03:43]} Nxb3 {[%clk 00:26:04]} {[%emt 00:05:46]} 20. Qe2 {[%clk
00:42:41]} {[%emt 00:00:31]} f5 {[%clk 00:25:42]} {[%emt 00:00:32]} 21. Qxc4
{[%clk 00:38:13]} {[%emt 00:04:38]} Qxc4 {[%clk 00:25:43]} {[%emt 00:00:09]} 22.
Nxc4 {[%clk 00:38:21]} {[%emt 00:00:03]} fxe4 {[%clk 00:25:45]} {[%emt
00:00:07]} 23. Nfd2 {[%clk 00:30:13]} {[%emt 00:08:18]} Nxd2 {[%clk 00:25:52]}
{[%emt 00:00:03]} 24. Nxd2 {[%clk 00:30:20]} {[%emt 00:00:03]} Bf5 {[%clk
00:25:59]} {[%emt 00:00:03]} 25. Ra1 {[%clk 00:28:52]} {[%emt 00:01:38]} Rfb8
{[%clk 00:24:09]} {[%emt 00:02:00]} 26. Nc4 {[%clk 00:27:20]} {[%emt 00:01:42]}
Rb5 {[%clk 00:23:42]} {[%emt 00:00:37]} 27. Re2 {[%clk 00:18:27]} {[%emt
00:09:03]} a5 {[%clk 00:20:05]} {[%emt 00:03:48]} 28. g4 {[%clk 00:14:37]}
{[%emt 00:03:59]} Bg6 {[%clk 00:19:38]} {[%emt 00:00:37]} 29. b4 {[%clk
00:14:25]} {[%emt 00:00:23]} a4 {[%clk 00:18:29]} {[%emt 00:01:19]} 30. Nb6
{[%clk 00:12:43]} {[%emt 00:01:51]} Rb8 {[%clk 00:15:50]} {[%emt 00:02:48]} 31.
Nxa4 {[%clk 00:12:30]} {[%emt 00:00:24]} Bf7 {[%clk 00:11:19]} {[%emt
00:04:42]} 32. Rd2 {[%clk 00:06:40]} {[%emt 00:05:59]} Ra8 {[%clk 00:08:24]}
{[%emt 00:03:05]} 33. Rdd1 {[%clk 00:04:54]} {[%emt 00:01:57]} Rxd5 {[%clk
00:06:26]} {[%emt 00:02:07]} 34. Nb6 {[%clk 00:04:58]} {[%emt 00:00:06]} Rxd1+
{[%clk 00:05:10]} {[%emt 00:01:27]} 35. Rxd1 {[%clk 00:05:07]} Ra3 {[%clk
00:01:44]} {[%emt 00:03:37]} 36. c4 {[%clk 00:04:37]} {[%emt 00:00:39]} Be6
{[%clk 00:01:20]} {[%emt 00:00:34]} 37. Nd5 {[%clk 00:03:35]} {[%emt 00:01:13]}
Bxd5 {[%clk 00:00:39]} {[%emt 00:00:50]} 38. Rxd5 {[%clk 00:03:44]} {[%emt
00:00:01]} Rc3 {[%clk 00:00:31]} {[%emt 00:00:18]} 39. c5 {[%clk 00:03:21]}
{[%emt 00:00:32]} dxc5 {[%clk 00:00:40]} {[%emt 00:00:02]} 40. bxc5 {[%clk
00:03:29]} {[%emt 00:00:02]} Kf7 {[%clk 00:00:17]} {[%emt 00:00:32]} 41. Rxe5
{[%clk 00:03:35]} {[%emt 00:00:05]} Rc4 {[%clk 00:00:24]} {[%emt 00:00:04]} 42.
g5 {[%clk 00:03:19]} {[%emt 00:00:25]} g6 {[%clk 00:00:16]} {[%emt 00:00:18]}
43. Kg2 {[%clk 00:03:24]} {[%emt 00:00:06]} Bf8 {[%clk 00:00:20]} {[%emt
00:00:05]} 44. Kg3 {[%clk 00:03:18]} {[%emt 00:00:16]} Bg7 {[%clk 00:00:22]}
{[%emt 00:00:08]} 45. Rd5 {[%clk 00:02:54]} {[%emt 00:00:34]} Ke6 {[%clk
00:00:16]} {[%emt 00:00:16]} 46. Rd6+ {[%clk 00:02:53]} {[%emt 00:00:11]} Ke7
{[%clk 00:00:13]} {[%emt 00:00:13]} 47. Ra6 {[%clk 00:02:50]} {[%emt 00:00:13]}
Be5+ {[%clk 00:00:21]} {[%emt 00:00:03]} 48. Kg4 {[%clk 00:02:36]} {[%emt
00:00:23]} Bd4 {[%clk 00:00:21]} {[%emt 00:00:10]} 49. Ra7+ {[%clk 00:02:23]}
{[%emt 00:00:24]} Kf8 {[%clk 00:00:21]} {[%emt 00:00:10]} 50. Rxh7 {[%clk
00:02:07]} {[%emt 00:00:26]} Bxe3 {[%clk 00:00:29]} {[%emt 00:00:02]} 51. fxe3
{[%clk 00:02:15]} {[%emt 00:00:02]} Rxc5 {[%clk 00:00:36]} {[%emt 00:00:04]} 52.
h4 {[%clk 00:02:10]} {[%emt 00:00:14]} Rb5 {[%clk 00:00:14]} {[%emt 00:00:32]}
53. Kf4 {[%clk 00:02:00]} {[%emt 00:00:18]} Rb4 {[%clk 00:00:18]} {[%emt
00:00:07]} 54. Ke5 {[%clk 00:01:50]} {[%emt 00:00:20]} Kg8 {[%clk 00:00:15]}
{[%emt 00:00:13]} 55. Re7 {[%clk 00:01:38]} {[%emt 00:00:22]} Rb6 {[%clk
00:00:12]} {[%emt 00:00:13]} 56. Re6 {[%clk 00:01:34]} {[%emt 00:00:14]} Rb5+
{[%clk 00:00:21]} {[%emt 00:00:02]} 57. Kf6 {[%clk 00:01:34]} {[%emt 00:00:09]}
Kh7 {[%clk 00:00:11]} {[%emt 00:00:20]} 58. Re7+ {[%clk 00:01:37]} {[%emt
00:00:07]} Kg8 {[%clk 00:00:20]} {[%emt 00:00:02]} 59. Rxe4 {[%clk 00:01:38]}
{[%emt 00:00:08]} Rb6+ {[%clk 00:00:24]} {[%emt 00:00:06]} 60. Re6 {[%clk
00:01:46]} {[%emt 00:00:02]} Rb4 {[%clk 00:00:14]} {[%emt 00:00:20]} 61. Kxg6
{[%clk 00:01:48]} {[%emt 00:00:08]} Kf8 {[%clk 00:00:22]} {[%emt 00:00:03]} 62.
h5 {[%clk 00:01:53]} {[%emt 00:00:05]} Rb7 {[%clk 00:00:11]} {[%emt 00:00:20]}
63. h6 {[%clk 00:01:53]} {[%emt 00:00:10]} Rb1 {[%emt 00:00:11]} 1-0

[ePGN "0.1;DGT LiveChess/2.2.5"]

[Event "World Women Teams Championship"]
[Site "Sitges, Spain"]
[Date "2021.09.27"]
[Round "2.1"]
[White "Goryachkina Aleksandra(CFR)"]
[Black "Sebag Marie (FRA)"]
[Result "1/2-1/2"]
[TimeControl "40+10"]
[WhiteElo "2520"]
[BlackElo "2401"]

1. d4 {[%clk 00:45:16]} {[%emt 00:00:04]} d5 {[%clk 00:45:18]} {[%emt
00:00:03]} 2. c4 {[%clk 00:45:23]} {[%emt 00:00:02]} c6 {[%clk 00:45:26]}
{[%emt 00:00:02]} 3. Nf3 {[%clk 00:45:31]} {[%emt 00:00:02]} Nf6 {[%clk
00:45:34]} {[%emt 00:00:02]} 4. Nc3 {[%clk 00:45:36]} {[%emt 00:00:05]} e6
{[%clk 00:45:36]} {[%emt 00:00:09]} 5. e3 {[%clk 00:45:38]} {[%emt 00:00:08]}
Nbd7 {[%clk 00:45:41]} {[%emt 00:00:04]} 6. Qc2 {[%clk 00:45:45]} {[%emt
00:00:03]} Bd6 {[%clk 00:45:43]} {[%emt 00:00:08]} 7. b3 {[%clk 00:45:45]}
{[%emt 00:00:11]} O-O {[%clk 00:45:45]} {[%emt 00:00:07]} 8. Be2 {[%clk
00:45:48]} {[%emt 00:00:07]} b6 {[%clk 00:45:21]} {[%emt 00:00:35]} 9. O-O
{[%clk 00:45:42]} {[%emt 00:00:15]} Bb7 {[%clk 00:45:27]} {[%emt 00:00:04]} 10.
Bb2 {[%clk 00:45:48]} {[%emt 00:00:04]} Qe7 {[%clk 00:45:25]} {[%emt 00:00:13]}
11. Rfe1 {[%clk 00:45:51]} {[%emt 00:00:07]} Rad8 {[%clk 00:45:20]} {[%emt
00:00:14]} 12. cxd5 {[%clk 00:43:41]} {[%emt 00:02:21]} cxd5 {[%clk 00:35:03]}
{[%emt 00:10:27]} 13. Nb5 {[%clk 00:43:25]} {[%emt 00:00:26]} Rc8 {[%clk
00:35:01]} {[%emt 00:00:11]} 14. Qb1 {[%clk 00:41:05]} {[%emt 00:02:29]} Bb4
{[%clk 00:31:41]} {[%emt 00:03:30]} 15. Rc1 {[%clk 00:33:37]} {[%emt 00:07:39]}
Rxc1+ {[%clk 00:31:28]} {[%emt 00:00:23]} 16. Qxc1 {[%clk 00:32:06]} {[%emt
00:01:41]} Rc8 {[%clk 00:31:02]} {[%emt 00:00:36]} 17. Qd1 {[%clk 00:31:20]}
{[%emt 00:00:57]} a6 {[%clk 00:29:20]} {[%emt 00:01:51]} 18. a3 {[%clk
00:30:59]} {[%emt 00:00:31]} Ba5 {[%clk 00:25:03]} {[%emt 00:04:26]} 19. b4
{[%clk 00:30:56]} {[%emt 00:00:15]} Bxb4 {[%clk 00:24:49]} {[%emt 00:00:24]} 20.
Na7 {[%clk 00:28:12]} {[%emt 00:02:53]} Ra8 {[%clk 00:24:43]} {[%emt 00:00:15]}
21. axb4 {[%clk 00:27:48]} {[%emt 00:00:35]} Rxa7 {[%clk 00:23:50]} {[%emt
00:01:03]} 1/2-1/2